[Event "Serbian League Women 2024"]
[Site "Bajina Basta"]
[Date "2024.10.03"]
[Round "7.19"]
[White "Nestorovic, Katarina"]
[Black "Drljevic, Ljilja"]
[Result "0-1"]
[ECO "B01"]
[WhiteElo "2038"]
[BlackElo "2102"]
[Annotator "NA RC"]
[PlyCount "64"]
[EventDate "2024.09.26"]
[EventType "team-tourn"]
[EventCountry "SRB"]
[SourceTitle "playchess.com"]
[Source "ChessBase"]
[SourceQuality "1"]
[TimeControl "40/5400+30:1800+30"]

1. e4 {[%emt 0:00:04]} d5 {[%emt 0:00:03]} 2. exd5 {[%emt 0:00:14]} Qxd5 {[%emt 0:00:03]} 3. Nc3 {[%emt 0:00:25]} Qd8 {[%emt 0:00:02]} 4. d4 {[%emt 0:00:44]} Nf6 {[%emt 0:00:09]} 5. Bd3 {[%emt 0:03:07]} g6 {[%emt 0:04:58]} 6. Nge2 {[%emt 0:01:23]} Bg7 {[%emt 0:02:57]} 7. Bf4 {[%emt 0:02:47]} b6 {[%emt 0:07:20]} 8. Qd2 {[%emt 0:01:27]} Bb7 {[%emt 0:01:20]} 9. f3 {[%emt 0:00:33]} e6 {[%emt 0:08:02]} 10. O-O-O {[%emt 0:04:16]} a6 {[%emt 0:03:27]} 11. Bh6 {[%emt 0:09:53]} Bxh6 {[%emt 0:09:59]} 12. Qxh6 {[%emt 0:00:06]} Nbd7 {[%emt 0:00:38]} 13. d5 {[%emt 0:10:17]} Nxd5 {[%emt 0:06:05]} 14. Nxd5 {[%emt 0:01:30]} exd5 {[%emt 0:01:41]} 15. Rhe1 {[%emt 0:18:48]} Qf6 {[%emt 0:00:18]} 16. Qe3+ {[%emt 0:01:36]} Kf8 {[%emt 0:07:00]} 17. Nd4 {[%emt 0:06:31]} Rd8 {[%emt 0:19:42]} 18. Qh6+ {[%emt 0:03:54]} Kg8 {[%emt 0:01:09]} 19. Rd2 {[%emt 0:15:05]} c5 {[%emt 0:11:34]} 20. Rde2 {[%emt 0:01:50]} Qg7 {[%emt 0:05:39]} 21. Qh4 {[%emt 0:03:00]} Qf6 {[%emt 0:00:44]} 22. Qh6 {[%emt 0:05:11]} Rf8 {[%emt 0:00:50]} 23. Re7 {[%emt 0:00:32]} Bc8 {[%emt 0:02:31]} 24. Re8 {[%emt 0:08:34]} Qg7 {[%emt 0:00:47]} 25. Qxg7+ {[%emt 0:00:40]} Kxg7 {[%emt 0:00:03]} 26. Rxf8 {[%emt 0:00:29]} Rxf8 {[%emt 0:01:25]} 27. Nc6 {[%emt 0:00:07]} Bb7 {[%emt 0:01:31]} 28. Ne7 {[%emt 0:00:48]} c4 {[%emt 0:02:02]} 29. Bf1 {[%emt 0:00:01]} f5 {[%emt 0:00:33]} 30. g4 {[%emt 0:00:50]} fxg4 {[%emt 0:01:46]} 31. fxg4 {[%emt 0:00:01]} Kf7 {[%emt 0:00:21]} 32. Bg2 {[%emt 0:01:12]} Re8 {[%emt 0:00:25]} 0-1

[Event "Serbian League Women 2024"]
[Site "Bajina Basta"]
[Date "2024.10.03"]
[Round "7.20"]
[White "Mijic, Sara"]
[Black "Dizdarevic, Barbara"]
[Result "1-0"]
[ECO "B00"]
[WhiteElo "1993"]
[BlackElo "1966"]
[Annotator "NA RC"]
[PlyCount "55"]
[EventDate "2024.09.26"]
[EventType "team-tourn"]
[EventCountry "SRB"]
[SourceTitle "playchess.com"]
[Source "ChessBase"]
[SourceQuality "1"]
[TimeControl "40/5400+30:1800+30"]

1. e4 {[%emt 0:00:17]} b6 {[%emt 0:00:05]} 2. d4 {[%emt 0:01:17]} Bb7 {[%emt 0:00:06]} 3. Nc3 {[%emt 0:01:14]} e6 {[%emt 0:00:04]} 4. f4 {[%emt 0:01:36]} Bb4 {[%emt 0:02:55]} 5. Bd3 {[%emt 0:03:13]} f5 {[%emt 0:09:32]} 6. Qh5+ {[%emt 0:11:33]} g6 {[%emt 0:01:11]} 7. Qe2 {[%emt 0:00:07]} Qh4+ {[%emt 0:10:56]} 8. Kf1 {[%emt 0:13:52]} Bxc3 {[%emt 0:18:47]} 9. bxc3 {[%emt 0:00:28]} Nh6 {[%emt 0:02:41]} 10. Nf3 {[%emt 0:11:25]} Qe7 {[%emt 0:02:31]} 11. e5 {[%emt 0:04:35]} Nf7 {[%emt 0:08:47]} 12. a4 {[%emt 0:07:11]} a5 {[%emt 0:05:10]} 13. Ba3 {[%emt 0:03:47]} d6 {[%emt 0:03:27]} 14. Re1 {[%emt 0:04:41]} Kd7 {[%emt 0:00:53]} 15. Bb5+ {[%emt 0:02:20]} c6 {[%emt 0:05:22]} 16. exd6 {[%emt 0:01:14]} Nxd6 {[%emt 0:01:04]} 17. Ne5+ {[%emt 0:00:35]} Kc8 {[%emt 0:08:55]} 18. Nc4 {[%emt 0:00:35]} cxb5 {[%emt 0:04:41]} 19. Bxd6 {[%emt 0:03:11]} Qd8 {[%emt 0:03:30]} 20. Qxe6+ {[%emt 0:00:32]} Nd7 {[%emt 0:00:09]} 21. Be7 {[%emt 0:02:10]} Qc7 {[%emt 0:01:13]} 22. Nd6+ {[%emt 0:00:06]} Kb8 {[%emt 0:00:15]} 23. Nxb5 {[%emt 0:00:40]} Qxf4+ {[%emt 0:07:59]} 24. Kg1 {[%emt 0:00:08]} Kc8 {[%emt 0:00:21]} 25. Nd6+ {[%emt 0:02:52]} Kc7 {[%emt 0:00:09]} 26. Nxb7 {[%emt 0:02:37]} Kxb7 {[%emt 0:01:20]} 27. Bd6 {[%emt 0:00:40]} Qd2 {[%emt 0:01:14]} 28. Qxd7+ {[%emt 0:00:07]} 1-0

[Event "Serbian League Women 2024"]
[Site "Bajina Basta"]
[Date "2024.10.03"]
[Round "7.21"]
[White "Muetsch, Annmarie"]
[Black "Unuk, Laura"]
[Result "1/2-1/2"]
[ECO "C08"]
[WhiteElo "2290"]
[BlackElo "2316"]
[Annotator "RC"]
[PlyCount "150"]
[EventDate "2024.09.26"]
[EventType "team-tourn"]
[EventCountry "SRB"]
[SourceTitle "playchess.com"]
[Source "ChessBase"]
[SourceQuality "1"]
[TimeControl "40/5400+30:1800+30"]

1. e4 {[%emt 0:00:14]} e6 {[%emt 0:00:40]} 2. d4 {[%emt 0:00:36]} d5 {[%emt 0:00:06]} 3. Nd2 {[%emt 0:00:15]} c5 {[%emt 0:01:21]} 4. exd5 {[%emt 0:00:11]} exd5 {[%emt 0:00:21]} 5. Ngf3 {[%emt 0:00:23]} Nf6 {[%emt 0:00:39]} 6. Bb5+ {[%emt 0:01:20]} Bd7 {[%emt 0:00:29]} 7. Bxd7+ {[%emt 0:02:20]} Nbxd7 {[%emt 0:00:36]} 8. O-O {[%emt 0:01:01]} Be7 {[%emt 0:01:26]} 9. dxc5 {[%emt 0:03:29]} Nxc5 {[%emt 0:00:20]} 10. c3 {[%emt 0:01:16]} O-O {[%emt 0:00:42]} 11. Nb3 {[%emt 0:00:42]} Nce4 {[%emt 0:02:28]} 12. Bf4 {[%emt 0:04:45]} Re8 {[%emt 0:15:29]} 13. Nbd4 {[%emt 0:02:17]} Bd6 {[%emt 0:05:55]} 14. Bxd6 {[%emt 0:05:41]} Nxd6 {[%emt 0:01:29]} 15. Qb3 {[%emt 0:02:37]} Qd7 {[%emt 0:10:41]} 16. h3 {[%emt 0:04:15]} Nc4 {[%emt 0:10:27]} 17. Rad1 {[%emt 0:03:46]} a6 {[%emt 0:00:38]} 18. a4 {[%emt 0:07:39]} Ne4 {[%emt 0:09:49]} 19. Qa2 {[%emt 0:12:40]} Rad8 {[%emt 0:01:05]} 20. Nc2 {[%emt 0:05:07]} Qc7 {[%emt 0:16:19]} 21. Nb4 {[%emt 0:05:22]} Qc5 {[%emt 0:00:06]} 22. Rd4 {[%emt 0:02:14]} a5 {[%emt 0:01:57]} 23. Nxd5 {[%emt 0:04:10]} Nxb2 {[%emt 0:01:12]} 24. Rb1 {[%emt 0:05:24]} Rxd5 {[%emt 0:05:13]} 25. Rxd5 {[%emt 0:13:36]} Qxf2+ {[%emt 0:01:05]} 26. Kh1 {[%emt 0:00:08]} Nxc3 {[%emt 0:03:29]} 27. Qxb2 {[%emt 0:08:39]} Qxb2 {[%emt 0:00:37]} 28. Rxb2 {[%emt 0:00:05]} Nxd5 {[%emt 0:00:03]} 29. Rb5 {[%emt 0:01:55]} Nc3 {[%emt 0:01:38]} 30. Rxa5 {[%emt 0:00:20]} h6 {[%emt 0:00:37]} 31. Ra7 {[%emt 0:01:11]} b6 {[%emt 0:00:17]} 32. Ra6 {[%emt 0:00:33]} Nd5 {[%emt 0:02:28]} 33. a5 {[%emt 0:01:12]} bxa5 {[%emt 0:00:27]} 34. Rxa5 {[%emt 0:00:05]} Nf4 {[%emt 0:01:03]} 35. Ra2 {[%emt 0:00:47]} g6 {[%emt 0:01:01]} 36. Kg1 {[%emt 0:00:33]} Kg7 {[%emt 0:02:32]} 37. Kf2 {[%emt 0:00:12]} Nd3+ {[%emt 0:01:09]} 38. Kg3 {[%emt 0:00:43]} Re7 {[%emt 0:00:21]} 39. Rd2 {[%emt 0:00:51]} Nc5 {[%emt 0:00:20]} 40. Ra2 {[%emt 0:00:29]} Ne4+ {[%emt 0:01:23]} 41. Kh2 {[%emt 0:30:08]} Nc3 {[%emt 0:10:11]} 42. Rc2 {[%emt 0:00:00]} Ne2 {[%emt 0:00:06]} 43. Ra2 {[%emt 0:00:00]} Re3 {[%emt 0:02:17]} 44. Rb2 {[%emt 0:00:00]} g5 {[%emt 0:04:05]} 45. Rb4 {[%emt 0:00:00]} Kg6 {[%emt 0:04:16]} 46. Rb1 {[%emt 0:00:00]} Nf4 {[%emt 0:03:43]} 47. Rb2 {[%emt 0:00:00]} f6 {[%emt 0:00:42]} 48. Kg3 {[%emt 0:00:00]} h5 {[%emt 0:01:10]} 49. Ra2 {[%emt 0:00:00]} h4+ {[%emt 0:04:11]} 50. Kf2 {[%emt 0:00:00]} Rc3 {[%emt 0:00:15]} 51. Rd2 {[%emt 0:00:00]} Kf5 {[%emt 0:00:21]} 52. Rd4 {[%emt 0:00:00]} Ra3 {[%emt 0:02:04]} 53. Rd2 {[%emt 0:00:00]} Nd3+ {[%emt 0:00:16]} 54. Kg1 {[%emt 0:00:00]} Kf4 {[%emt 0:01:32]} 55. Kh2 {[%emt 0:00:00]} f5 {[%emt 0:03:03]} 56. Rc2 {[%emt 0:00:00]} Ra4 {[%emt 0:00:04]} 57. Rc3 {[%emt 0:00:00]} Nb2 {[%emt 0:01:26]} 58. Rb3 {[%emt 0:00:00]} Nd1 {[%emt 0:00:57]} 59. Rd3 {[%emt 0:00:00]} Nf2 {[%emt 0:00:16]} 60. Rd4+ {[%emt 0:00:52]} Rxd4 {[%emt 0:00:05]} 61. Nxd4 {[%emt 0:00:09]} Ke4 {[%emt 0:00:51]} 62. Nf3 {[%emt 0:02:51]} Kf4 {[%emt 0:00:24]} 63. Nd4 {[%emt 0:00:27]} g4 {[%emt 0:00:35]} 64. hxg4 {[%emt 0:00:57]} fxg4 {[%emt 0:00:06]} 65. g3+ {[%emt 0:01:11]} hxg3+ {[%emt 0:01:32]} 66. Kg2 {[%emt 0:00:07]} Ne4 {[%emt 0:00:31]} 67. Ne2+ {[%emt 0:00:08]} Kf5 {[%emt 0:00:26]} 68. Nxg3+ {[%emt 0:00:18]} Nxg3 {[%emt 0:00:25]} 69. Kxg3 {[%emt 0:00:04]} Kg5 {[%emt 0:00:03]} 70. Kg2 {[%emt 0:00:06]} Kf4 {[%emt 0:00:11]} 71. Kf2 {[%emt 0:00:05]} g3+ {[%emt 0:00:05]} 72. Kg2 {[%emt 0:00:04]} Kg4 {[%emt 0:00:02]} 73. Kg1 {[%emt 0:00:05]} Kf3 {[%emt 0:00:05]} 74. Kf1 {[%emt 0:00:04]} g2+ {[%emt 0:00:05]} 75. Kg1 {[%emt 0:00:03]} Kg3 {[%emt 0:00:04]} 1/2-1/2

[Event "Serbian League Women 2024"]
[Site "Bajina Basta"]
[Date "2024.10.03"]
[Round "7.22"]
[White "Lach, Aleksandra"]
[Black "Mehmed, Elif"]
[Result "1-0"]
[ECO "B30"]
[WhiteElo "2278"]
[BlackElo "2228"]
[Annotator "RC"]
[PlyCount "95"]
[EventDate "2024.09.26"]
[EventType "team-tourn"]
[EventCountry "SRB"]
[SourceTitle "playchess.com"]
[Source "ChessBase"]
[SourceQuality "1"]
[TimeControl "40/5400+30:1800+30"]

1. e4 {[%emt 0:00:04]} c5 {[%emt 0:00:14]} 2. Nc3 {[%emt 0:00:13]} Nc6 {[%emt 0:00:06]} 3. Bb5 {[%emt 0:00:37]} Nd4 {[%emt 0:00:06]} 4. Nf3 {[%emt 0:00:08]} e6 {[%emt 0:00:07]} 5. O-O {[%emt 0:01:33]} a6 {[%emt 0:00:33]} 6. Bd3 {[%emt 0:00:25]} Nc6 {[%emt 0:00:19]} 7. Nd5 {[%emt 0:01:35]} g5 {[%emt 0:10:53]} 8. Ne3 {[%emt 0:01:02]} h5 {[%emt 0:00:38]} 9. b3 {[%emt 0:00:23]} Bg7 {[%emt 0:07:28]} 10. Rb1 {[%emt 0:00:07]} g4 {[%emt 0:03:25]} 11. Ne1 {[%emt 0:00:42]} Nge7 {[%emt 0:00:40]} 12. f3 {[%emt 0:01:37]} gxf3 {[%emt 0:00:14]} 13. Nxf3 {[%emt 0:15:38]} Ng6 {[%emt 0:00:23]} 14. Nc4 {[%emt 0:05:43]} Qc7 {[%emt 0:14:18]} 15. e5 {[%emt 0:10:56]} Ngxe5 {[%emt 0:06:52]} 16. Bb2 {[%emt 0:08:36]} d5 {[%emt 0:05:28]} 17. Ncxe5 {[%emt 0:00:57]} Nxe5 {[%emt 0:00:17]} 18. Bxe5 {[%emt 0:11:14]} Bxe5 {[%emt 0:00:05]} 19. Nxe5 {[%emt 0:00:17]} Qxe5 {[%emt 0:00:06]} 20. Qf3 {[%emt 0:00:07]} Qd4+ {[%emt 0:17:50]} 21. Kh1 {[%emt 0:04:10]} Qg7 {[%emt 0:03:19]} 22. c4 {[%emt 0:01:25]} d4 {[%emt 0:02:34]} 23. Rbe1 {[%emt 0:01:01]} a5 {[%emt 0:06:25]} 24. Be4 {[%emt 0:01:33]} a4 {[%emt 0:01:37]} 25. Bc6+ {[%emt 0:07:56]} Ke7 {[%emt 0:00:15]} 26. Bxb7 {[%emt 0:02:01]} Ra7 {[%emt 0:00:09]} 27. Bc6 {[%emt 0:01:42]} Kd6 {[%emt 0:04:39]} 28. bxa4 {[%emt 0:09:31]} f5 {[%emt 0:00:32]} 29. Rb1 {[%emt 0:00:40]} Qg4 {[%emt 0:04:40]} 30. Qb3 {[%emt 0:00:26]} Rc7 {[%emt 0:02:32]} 31. Bf3 {[%emt 0:01:16]} Qf4 {[%emt 0:00:38]} 32. Bd5 {[%emt 0:03:43]} Qh6 {[%emt 0:01:01]} 33. Qb6+ {[%emt 0:00:44]} Kd7 {[%emt 0:00:04]} 34. Bf3 {[%emt 0:02:16]} e5 {[%emt 0:01:15]} 35. Qb5+ {[%emt 0:00:31]} Kd8 {[%emt 0:00:13]} 36. Bd5 {[%emt 0:01:10]} Qxd2 {[%emt 0:00:39]} 37. Qb8 {[%emt 0:01:09]} e4 {[%emt 0:07:41]} 38. Rxf5 {[%emt 0:01:20]} Qc2 {[%emt 0:00:38]} 39. Rff1 {[%emt 0:01:12]} e3 {[%emt 0:00:21]} 40. Qb6 {[%emt 0:00:34]} Re8 {[%emt 0:00:42]} 41. Qf6+ {[%emt 0:23:57]} Rce7 {[%emt 0:17:43]} 42. Rb8 {[%emt 0:00:14]} e2 {[%emt 0:04:12]} 43. Qd6+ {[%emt 0:00:24]} Rd7 {[%emt 0:00:07]} 44. Rxc8+ {[%emt 0:00:07]} Kxc8 {[%emt 0:00:12]} 45. Qa6+ {[%emt 0:00:03]} Kd8 {[%emt 0:07:55]} 46. Qa8+ {[%emt 0:00:13]} Kc7 {[%emt 0:00:24]} 47. Qb7+ {[%emt 0:00:17]} Kd8 {[%emt 0:00:11]} 48. Qb8+ {[%emt 0:00:06]} 1-0

[Event "Serbian League Women 2024"]
[Site "Bajina Basta"]
[Date "2024.10.03"]
[Round "7.23"]
[White "Manakova, Maria"]
[Black "Bojicic, Andjela"]
[Result "1-0"]
[ECO "B07"]
[WhiteElo "2185"]
[BlackElo "2071"]
[Annotator "RC"]
[PlyCount "71"]
[EventDate "2024.09.26"]
[EventType "team-tourn"]
[EventCountry "SRB"]
[SourceTitle "playchess.com"]
[Source "ChessBase"]
[SourceQuality "1"]
[TimeControl "40/5400+30:1800+30"]

1. e4 {[%emt 0:00:03]} d6 {[%emt 0:00:35]} 2. d4 {[%emt 0:00:04]} Nf6 {[%emt 0:00:22]} 3. Nc3 {[%emt 0:00:05]} a6 {[%emt 0:01:59]} 4. Be3 {[%emt 0:02:24]} e6 {[%emt 0:00:59]} 5. a4 {[%emt 0:03:00]} b6 {[%emt 0:00:04]} 6. f3 {[%emt 0:06:04]} Bb7 {[%emt 0:00:27]} 7. Nge2 {[%emt 0:05:28]} Nbd7 {[%emt 0:01:10]} 8. Qd2 {[%emt 0:01:32]} c5 {[%emt 0:00:54]} 9. Ng3 {[%emt 0:13:05]} Qc7 {[%emt 0:03:43]} 10. d5 {[%emt 0:09:12]} exd5 {[%emt 0:19:51]} 11. Nxd5 {[%emt 0:01:45]} Nxd5 {[%emt 0:01:08]} 12. exd5 {[%emt 0:00:04]} O-O-O {[%emt 0:06:45]} 13. Ne4 {[%emt 0:00:58]} Re8 {[%emt 0:01:47]} 14. Be2 {[%emt 0:01:37]} h6 {[%emt 0:01:52]} 15. O-O {[%emt 0:01:10]} g6 {[%emt 0:03:29]} 16. Nc3 {[%emt 0:11:07]} Bg7 {[%emt 0:00:47]} 17. Bf2 {[%emt 0:00:09]} h5 {[%emt 0:09:01]} 18. Bc4 {[%emt 0:16:56]} Bh6 {[%emt 0:02:42]} 19. f4 {[%emt 0:00:13]} Ne5 {[%emt 0:04:32]} 20. b3 {[%emt 0:00:09]} Kb8 {[%emt 0:01:53]} 21. a5 {[%emt 0:07:31]} b5 {[%emt 0:04:02]} 22. Bxb5 {[%emt 0:00:11]} axb5 {[%emt 0:01:22]} 23. a6 {[%emt 0:02:17]} b4 {[%emt 0:21:01]} 24. axb7 {[%emt 0:00:20]} bxc3 {[%emt 0:00:54]} 25. Qe2 {[%emt 0:00:30]} Qxb7 {[%emt 0:06:57]} 26. fxe5 {[%emt 0:00:06]} Rxe5 {[%emt 0:00:08]} 27. Qc4 {[%emt 0:00:17]} Rhe8 {[%emt 0:01:03]} 28. Ra5 {[%emt 0:02:10]} Re4 {[%emt 0:00:11]} 29. Qxc3 {[%emt 0:00:18]} Be3 {[%emt 0:01:57]} 30. Bxe3 {[%emt 0:01:43]} Rxe3 {[%emt 0:00:04]} 31. Qa1 {[%emt 0:03:34]} R8e7 {[%emt 0:01:49]} 32. c4 {[%emt 0:00:25]} Rxb3 {[%emt 0:00:09]} 33. Qh8+ {[%emt 0:00:16]} Kc7 {[%emt 0:00:13]} 34. Ra8 {[%emt 0:02:24]} Rd7 {[%emt 0:00:24]} 35. Qa1 {[%emt 0:00:11]} Kb6 {[%emt 0:01:23]} 36. Qa5# {[%emt 0:00:04]} 1-0

[Event "Serbian League Women 2024"]
[Site "Bajina Basta"]
[Date "2024.10.03"]
[Round "7.24"]
[White "Maksimovic, Masa"]
[Black "Djingarova, Emilia"]
[Result "1/2-1/2"]
[ECO "B28"]
[WhiteElo "2093"]
[BlackElo "2140"]
[Annotator "NA RC"]
[PlyCount "116"]
[EventDate "2024.09.26"]
[EventType "team-tourn"]
[EventCountry "SRB"]
[SourceTitle "playchess.com"]
[Source "ChessBase"]
[SourceQuality "1"]
[TimeControl "40/5400+30:1800+30"]

1. e4 {[%emt 0:00:39]} c5 {[%emt 0:00:18]} 2. Nf3 {[%emt 0:00:12]} a6 {[%emt 0:00:17]} 3. c3 {[%emt 0:00:59]} d5 {[%emt 0:01:27]} 4. exd5 {[%emt 0:00:27]} Qxd5 {[%emt 0:00:54]} 5. d4 {[%emt 0:00:23]} Nf6 {[%emt 0:09:50]} 6. Be2 {[%emt 0:01:33]} e6 {[%emt 0:01:39]} 7. O-O {[%emt 0:00:48]} Nc6 {[%emt 0:00:17]} 8. Be3 {[%emt 0:02:56]} cxd4 {[%emt 0:00:50]} 9. Nxd4 {[%emt 0:00:07]} Nxd4 {[%emt 0:05:58]} 10. Qxd4 {[%emt 0:00:12]} e5 {[%emt 0:14:02]} 11. Qh4 {[%emt 0:03:40]} Be7 {[%emt 0:00:07]} 12. Qg3 {[%emt 0:02:13]} O-O {[%emt 0:10:40]} 13. Nd2 {[%emt 0:11:41]} Ne4 {[%emt 0:13:26]} 14. Qf3 {[%emt 0:08:05]} Nf6 {[%emt 0:00:09]} 15. Nc4 {[%emt 0:04:49]} Be6 {[%emt 0:05:13]} 16. Qg3 {[%emt 0:08:41]} Nd7 {[%emt 0:01:27]} 17. Rfd1 {[%emt 0:00:40]} Qe4 {[%emt 0:01:51]} 18. Nd6 {[%emt 0:00:38]} Qg6 {[%emt 0:11:16]} 19. Qxg6 {[%emt 0:04:23]} hxg6 {[%emt 0:00:06]} 20. Bc4 {[%emt 0:05:52]} Bxc4 {[%emt 0:02:18]} 21. Nxc4 {[%emt 0:00:05]} Rad8 {[%emt 0:01:39]} 22. Rd5 {[%emt 0:08:17]} b5 {[%emt 0:05:31]} 23. Na5 {[%emt 0:10:26]} Nf6 {[%emt 0:00:11]} 24. Rxd8 {[%emt 0:00:08]} Bxd8 {[%emt 0:00:03]} 25. Nc6 {[%emt 0:00:07]} Bc7 {[%emt 0:02:06]} 26. a4 {[%emt 0:05:28]} Re8 {[%emt 0:04:04]} 27. axb5 {[%emt 0:00:13]} axb5 {[%emt 0:00:05]} 28. Ra7 {[%emt 0:01:49]} Nd5 {[%emt 0:00:55]} 29. Bc5 {[%emt 0:00:08]} Re6 {[%emt 0:04:56]} 30. Nb4 {[%emt 0:11:01]} Nxb4 {[%emt 0:00:03]} 31. cxb4 {[%emt 0:00:05]} Rc6 {[%emt 0:02:14]} 32. Rb7 {[%emt 0:01:08]} e4 {[%emt 0:00:32]} 33. Rxb5 {[%emt 0:01:03]} Ra6 {[%emt 0:00:50]} 34. g3 {[%emt 0:00:06]} Ra1+ {[%emt 0:00:55]} 35. Kg2 {[%emt 0:00:04]} Be5 {[%emt 0:00:03]} 36. Ra5 {[%emt 0:02:31]} Rb1 {[%emt 0:00:11]} 37. b5 {[%emt 0:00:30]} Rxb2 {[%emt 0:00:31]} 38. b6 {[%emt 0:00:05]} f6 {[%emt 0:00:30]} 39. Ra8+ {[%emt 0:02:05]} Kh7 {[%emt 0:01:48]} 40. Ra4 {[%emt 0:01:05]} Rb5 {[%emt 0:00:16]} 41. Be3 {[%emt 0:30:29]} f5 {[%emt 0:07:05]} 42. h4 {[%emt 0:00:00]} Kg8 {[%emt 0:07:31]} 43. Rc4 {[%emt 0:00:00]} Kf7 {[%emt 0:01:01]} 44. Rc5 {[%emt 0:00:00]} Rxc5 {[%emt 0:00:26]} 45. Bxc5 {[%emt 0:00:00]} Ke6 {[%emt 0:00:23]} 46. b7 {[%emt 0:00:00]} Bb8 {[%emt 0:00:19]} 47. Bf8 {[%emt 0:00:00]} Kd7 {[%emt 0:01:03]} 48. Bxg7 {[%emt 0:00:07]} Kc6 {[%emt 0:00:04]} 49. Bh6 {[%emt 0:06:57]} Kxb7 {[%emt 0:00:14]} 50. Kh3 {[%emt 0:00:22]} Kc6 {[%emt 0:02:26]} 51. g4 {[%emt 0:00:39]} Kd5 {[%emt 0:00:42]} 52. gxf5 {[%emt 0:01:04]} gxf5 {[%emt 0:00:13]} 53. h5 {[%emt 0:00:23]} Ke6 {[%emt 0:02:36]} 54. Kh4 {[%emt 0:00:23]} Kf6 {[%emt 0:07:57]} 55. Bg5+ {[%emt 0:00:17]} Kg7 {[%emt 0:00:30]} 56. Be3 {[%emt 0:00:09]} f4 {[%emt 0:00:10]} 57. Bd4+ {[%emt 0:00:28]} Kh6 {[%emt 0:00:05]} 58. Kg4 {[%emt 0:00:11]} e3 {[%emt 0:00:49]} 1/2-1/2